Workbook

Sheet Cover page
G13: =Name_Model -> FGN 5M Solar Connections Facility - SHS
A15: =Names!E9 -> [Insert Company Name]
A17: =Names!E10 -> [Insert Project Name, Location]

Sheet Names
C2: Names and Lists
C5: Name | E5: Value
C7: Entity Names
C8: Model Name | E8: FGN 5M Solar Connections Facility - SHS
C9: Company Name | E9: [Insert Company Name]
C10: Project Name | E10: [Insert Project Name, Location]
C12: Lists
C13: Price increase dropdown | E13: Inflation
E14: Inflation+ x%
C16: Year | E16: =Start_Year -> 2020
E17: =E16+1 -> 2021
E18: =E17+1 -> 2022
E19: 2023
E20: 2024
E21: 2025
C23: Scenario | E23: Upside
E24: Base
E25: Downside

Sheet Legend
C2: Style legend
C6: Style | E6: Design | G6: Comment
C8: Header1 | E8: Header1
C10: Header2 | E10: Header2
C12: Header3 | E12: Header3
C14: Assumption | E14: 100 | G14: A user driven input
C16: Technical_Input | E16: 100 | G16: A model input that should not be changed to protect the integrity of the model
C18: Empty_Cell | G18: A cell that is left intentionally blank to avoid the risk of error
C20: InSheet | E20: 100 | G20: A link within the worksheet or an interim calculation step
C22: OffSheet | E22: 100 | G22: A link to another worksheet to minimise the number of inter-worksheet references
C24: Line_SubTotal | E24: 100 | G24: The sum of elements in the table immediately above
C26: Line_Total | E26: 100 | G26: The sum of elements above, including sub-totals
C28: Unit / Info | E28: NGN | G28: Explanatory text showing helpful information and the units/dimensions of the calculations
C30: Line_Summary | E30: 100 | G30: The SUM() of everything to the right
C32: Table_Header | E32: Qtr | G32: Header of a table or of an off-sheet reference
C34: Flag | E34: 1 | G34: Binary flag - set up as a 'Style' and updated with conditional formatting
C36: Line_ClosingBal | E36: 100 | G36: The closing balance of a control account

Sheet Dashboard
C1: =Name_Model -> FGN 5M Solar Connections Facility - SHS
C3: Dashboard
A5: ● | C5: Model Information
C7: Company name | D7: =Names!E9 -> [Insert Company Name] | I7: Model checks
C8: Model name | D8: =CONCATENATE(Names!E9," ",Name_Model) -> [Insert Company Name] FGN 5M Solar Connections Facility - SHS | I8: Model balances | K8: =Model!P74 -> 0
C9: Location | D9: LGA, State, Nigeria | I9: Cash balance always positive | K9: =Model!O103 -> 0
I10: Inputs correct | K10: =Inputs!E246 -> 0
I11: Operating Scenario | K11: =Inputs!E25 -> Base
A14: ● | C14: Key Outputs | N14: Graphs
C17: Financial Statements
C18: Income statement key outputs | G18: =Start_Year -> 2020 | H18: =G18+1 -> 2021 | I18: =H18+1 -> 2022 | J18: 2023 | K18: 2024 | L18: 2025
C19: Revenue | D19: =Inputs!$E$9 -> USD | G19: =Model!I16 -> 2670000 | H19: =Model!J16 -> 3738000 | I19: =Model!K16 -> 5046300 | J19: =Model!L16 -> 6560190 | K19: =Model!M16 -> 8528247 | L19: =Model!N16 -> 10233896.4
C20: Operating Expenses (inc VAT) | D20: =Inputs!$E$9 -> USD | G20: =Model!I25+Model!I27 -> -269316.25 | H20: =Model!J25+Model!J27 -> -382768.25 | I20: =Model!K25+Model!K27 -> -523247.185 | J20: =Model!L25+Model!L27 -> -701683.4191 | K20: =Model!M25+Model!M27 -> -928432.2935 | L20: =Model!N25+Model!N27 -> -1145485.327
C21: EBITDA | D21: =Inputs!$E$9 -> USD | G21: =Model!I29 -> 531158.75 | H21: =Model!J29 -> 737896.75 | I21: =Model!K29 -> 989650.565 | J21: =Model!L29 -> 1265083.656 | K21: =Model!M29 -> 1628364.904 | L21: =Model!N29 -> 1922671.31
C22: Net Income | D22: =Inputs!$E$9 -> USD | G22: =Model!I42 -> 359283.95 | H22: =Model!J42 -> 500311.19 | I22: =Model!K42 -> 671616.5886 | J22: =Model!L42 -> 859159.7613 | K22: =Model!M42 -> 1106683.222 | L22: =Model!N42 -> 1306872.07
C23: Profit margin | D23: % | E23: =SUM(G22:K22)/SUM(G19:K19) -> 0.1317518503 | G23: =G22/G19 -> 0.1345632772 | H23: =H22/H19 -> 0.1338446201 | I23: 0.133090896 | J23: 0.1309656826 | K23: 0.1297667882 | L23: =L22/L19 -> 0.1277003419
C25: Balance sheet key outputs
C26: Cash balance | D26: =Inputs!$E$9 -> USD | G26: =Model!I48 -> 188079.361 | H26: =Model!J48 -> 561847.6042 | I26: =Model!K48 -> 1084292.617 | J26: =Model!L48 -> 1776792.821 | K26: =Model!M48 -> 2670173.25 | L26: =Model!N48 -> 3801004.135
C27: Debt | D27: =Inputs!$E$9 -> USD | G27: =Model!I64 -> 152439.726 | H27: =Model!J64 -> 180915.6164 | I27: =Model!K64 -> 218611.0822 | J27: =Model!L64 -> 264194.4068 | K27: =Model!M64 -> 327202.7289 | L27: =Model!N64 -> 392643.2747
C28: Equity | D28: =Inputs!$E$9 -> USD | G28: =Model!I70 -> 414408.95 | H28: =Model!J70 -> 914720.14 | I28: =Model!K70 -> 1586336.729 | J28: =Model!L70 -> 2445496.49 | K28: =Model!M70 -> 3552179.712 | L28: =Model!N70 -> 4859051.782
C29: Debt:equity ratio | D29: multiple | G29: =G27/G28 -> 0.3678485371 | H29: =H27/H28 -> 0.1977824785 | I29: =I27/I28 -> 0.1378087503 | J29: =J27/J28 -> 0.1080330346 | K29: =K27/K28 -> 0.09211322495 | L29: =L27/L28 -> 0.08080656316
AF32: DO NOT DELETE
AF33: =Model!F234 -> 0 | AG33: Upside | AH33: Downside | AI33: Base

Sheet Inputs
B1: Input Sheet | C1: =Name_Model -> FGN 5M Solar Connections Facility - SHS
C3: Inputs
A5: ● | C5: Timing
C6: Start
C7: Model Start Date | D7: Date | E7: 2020-01-01
C8: Model Start Year | D8: Date | E8: =YEAR(E7) -> 2020
C9: Model Currency | D9: USD/NGN | E9: USD | P9: USD
P10: NGN
A23: ● | C23: Operating Scenario
C25: Operating Scenario | D25: Name | E25: Base
A27: ● | C27: COGS assumptions
C29: Product 1 | G29: NGN Inputs
C30: System name | D30: Name
C31: System cost | D31: =$E$9 -> USD | E31: =IF($E$9="NGN",G31,(G31/$E$288)) -> 175 | G31: 70000
C32: Shipping cost | D32: =$E$9 -> USD | E32: =IF($E$9="NGN",G32,(G32/$E$288)) -> 8.75 | G32: 3500
C33: Installation cost | D33: % module cost | E33: 0.05
C34: Total COGS | D34: =$E$9 -> USD | E34: =SUM(E31:E32)*E33+(E31+E32) -> 192.9375
C36: Product 2 | G36: NGN Inputs
C37: System name | D37: Name
C38: System cost | D38: =$E$9 -> USD | E38: =IF($E$9="NGN",G38,(G38/$E$288)) -> 450 | G38: 180000
C39: Shipping cost | D39: =$E$9 -> USD | E39: =IF($E$9="NGN",G39,(G39/$E$288)) -> 16.25 | G39: 6500
C40: Installation cost | D40: % module cost | E40: 0.05
C41: Total COGS | D41: =$E$9 -> USD | E41: =SUM(E38:E39)*E40+(E38+E39) -> 489.5625
C43: Product 3 | G43: NGN Inputs
C44: System name | D44: Name
C45: System cost | D45: =$E$9 -> USD | E45: =IF($E$9="NGN",G45,(G45/$E$288)) -> 175 | G45: 70000
C46: Shipping cost | D46: =$E$9 -> USD | E46: =IF($E$9="NGN",G46,(G46/$E$288)) -> 8.75 | G46: 3500
C47: Installation cost | D47: % module cost | E47: 0.05
C48: Total COGS | D48: =$E$9 -> USD | E48: =SUM(E45:E46)*E47+(E45+E46) -> 192.9375
C50: Product 4 | G50: NGN Inputs
C51: System name | D51: Name
C52: System cost | D52: =$E$9 -> USD | E52: =IF($E$9="NGN",G52,(G52/$E$288)) -> 450 | G52: 180000
C53: Shipping cost | D53: =$E$9 -> USD | E53: =IF($E$9="NGN",G53,(G53/$E$288)) -> 16.25 | G53: 6500
C54: Installation cost | D54: % module cost | E54: 0.05
C55: Total COGS | D55: =$E$9 -> USD | E55: =SUM(E52:E53)*E54+(E52+E53) -> 489.5625
C57: Product 5 | G57: NGN Inputs
C58: System name | D58: Name
C59: System cost | D59: =$E$9 -> USD | E59: =IF($E$9="NGN",G59,(G59/$E$288)) -> 175 | G59: 70000
C60: Shipping cost | D60: =$E$9 -> USD | E60: =IF($E$9="NGN",G60,(G60/$E$288)) -> 8.75 | G60: 3500
C61: Installation cost | D61: % module cost | E61: 0.05
C62: Total COGS | D62: =$E$9 -> USD | E62: =SUM(E59:E60)*E61+(E59+E60) -> 192.9375
C64: Product 6 | G64: NGN Inputs
C65: System name | D65: Name
C66: System cost | D66: =$E$9 -> USD | E66: =IF($E$9="NGN",G66,(G66/$E$288)) -> 450 | G66: 180000
C67: Shipping cost | D67: =$E$9 -> USD | E67: =IF($E$9="NGN",G67,(G67/$E$288)) -> 16.25 | G67: 6500
C68: Installation cost | D68: % module cost | E68: 0.05
C69: Total COGS | D69: =$E$9 -> USD | E69: =SUM(E66:E67)*E68+(E66+E67) -> 489.5625
A71: ● | C71: Sales and pricing
C73: Sales assumptions
C74: Product 1
C75: Initial sales (2020) | D75: # | E75: 1200 | I75: =$E$8 -> 2020 | J75: =I75+1 -> 2021 | K75: =J75+1 -> 2022 | L75: 2023 | M75: 2024 | N75: 2025
C76: Annual sales growth | D76: # | J76: =J294 -> 0.4 | K76: =K294 -> 0.35 | L76: =L294 -> 0.3 | M76: =M294 -> 0.3 | N76: =N294 -> 0.2
C77: Total sales | E77: =SUM(I77:Q77) -> 16528.824 | I77: =E75 -> 1200 | J77: =I77*(1+J76) -> 1680 | K77: =J77*(1+K76) -> 2268 | L77: 2948.4 | M77: 3832.92 | N77: 4599.504
C79: Pricing assumptions
C80: Product 1 | G80: NGN Inputs
C81: Total PAYG | D81: =$E$9 -> USD | E81: =E82 + (E83*E84) -> 300
C82: Down Payment | D82: USD | E82: =IF($E$9="NGN",G82,(G82/$E$288)) -> 150 | G82: 60000
C83: Monthly fees | D83: USD | E83: =IF($E$9="NGN",G83,(G83/$E$288)) -> 12.5 | G83: 5000
C84: Tenure | D84: Months | E84: 12
C86: Default rate | D86: % | E86: 0.2
C88: Sales assumptions
C89: Product 2
C90: Initial sales (2020) | D90: # | E90: 800 | I90: =$E$8 -> 2020 | J90: =I90+1 -> 2021 | K90: =J90+1 -> 2022 | L90: 2023 | M90: 2024 | N90: 2025
C91: Annual sales growth | D91: # | J91: =J295 -> 0.4 | K91: =K295 -> 0.35 | L91: =L295 -> 0.3 | M91: =M295 -> 0.3 | N91: =N295 -> 0.2
C92: Total sales | E92: =SUM(I92:Q92) -> 11019.216 | I92: =E90 -> 800 | J92: =I92*(1+J91) -> 1120 | K92: =J92*(1+K91) -> 1512 | L92: =K92*(1+L91) -> 1965.6 | M92: =L92*(1+M91) -> 2555.28 | N92: =M92*(1+N91) -> 3066.336
C94: Pricing assumptions
C95: Product 2 | G95: NGN Inputs
C96: Total PAYG | D96: =$E$9 -> USD | E96: =E97 + (E98*E99) -> 737.5
C97: Down Payment | D97: USD | E97: =IF($E$9="NGN",G97,(G97/$E$288)) -> 587.5 | G97: 235000
C98: Monthly fees | D98: USD | E98: =IF($E$9="NGN",G98,(G98/$E$288)) -> 12.5 | G98: 5000
C99: Tenure | D99: Months | E99: 12
C101: Default rate | D101: % | E101: 0.2
C103: Sales assumptions
C104: Product 3
C105: Initial sales (2020) | D105: # | E105: 1200 | I105: =$E$8 -> 2020 | J105: =I105+1 -> 2021 | K105: =J105+1 -> 2022 | L105: =K105+1 -> 2023 | M105: =L105+1 -> 2024 | N105: =M105+1 -> 2025
C106: Annual sales growth | D106: # | J106: =J296 -> 0.4 | K106: =K296 -> 0.35 | L106: 0.3 | M106: 0.3 | N106: 0.2
C107: Total sales | E107: =SUM(I107:Q107) -> 16528.824 | I107: =E105 -> 1200 | J107: =I107*(1+J106) -> 1680 | K107: =J107*(1+K106) -> 2268 | L107: =K107*(1+L106) -> 2948.4 | M107: =L107*(1+M106) -> 3832.92 | N107: =M107*(1+N106) -> 4599.504
C109: Pricing assumptions
C110: Product 3 | G110: NGN Inputs
C111: Total PAYG | D111: =$E$9 -> USD | E111: =E112 + (E113*E114) -> 300
C112: Down Payment | D112: USD | E112: =IF($E$9="NGN",G112,(G112/$E$288)) -> 150 | G112: 60000
C113: Monthly fees | D113: USD | E113: =IF($E$9="NGN",G113,(G113/$E$288)) -> 12.5 | G113: 5000
C114: Tenure | D114: Months | E114: 12
C116: Default rate | D116: % | E116: 0.2
C118: Sales assumptions
C119: Product 4
C120: Initial sales (2020) | D120: # | E120: 800 | I120: =$E$8 -> 2020 | J120: =I120+1 -> 2021 | K120: =J120+1 -> 2022 | L120: =K120+1 -> 2023 | M120: =L120+1 -> 2024 | N120: =M120+1 -> 2025
C121: Annual sales growth | D121: # | J121: =J297 -> 0.4 | K121: =K297 -> 0.35 | L121: 0.3 | M121: 0.3 | N121: 0.2
C122: Total sales | E122: =SUM(I122:Q122) -> 11019.216 | I122: =E120 -> 800 | J122: =I122*(1+J121) -> 1120 | K122: =J122*(1+K121) -> 1512 | L122: =K122*(1+L121) -> 1965.6 | M122: =L122*(1+M121) -> 2555.28 | N122: =M122*(1+N121) -> 3066.336
C124: Pricing assumptions
C125: Product 4 | G125: NGN Inputs
C126: Total PAYG | D126: =$E$9 -> USD | E126: =E127 + (E128*E129) -> 737.5
C127: Down Payment | D127: USD | E127: =IF($E$9="NGN",G127,(G127/$E$288)) -> 587.5 | G127: 235000
C128: Monthly fees | D128: USD | E128: =IF($E$9="NGN",G128,(G128/$E$288)) -> 12.5 | G128: 5000
C129: Tenure | D129: Months | E129: 12
C131: Default rate | D131: % | E131: 0.2
C133: Sales assumptions
C134: Product 5
C135: Initial sales (2020) | D135: # | E135: 1200 | I135: =$E$8 -> 2020 | J135: =I135+1 -> 2021 | K135: =J135+1 -> 2022 | L135: =K135+1 -> 2023 | M135: =L135+1 -> 2024 | N135: =M135+1 -> 2025
C136: Annual sales growth | D136: # | J136: =J298 -> 0.4 | K136: =K298 -> 0.35 | L136: 0.3 | M136: 0.3 | N136: 0.2
C137: Total sales | E137: =SUM(I137:Q137) -> 16528.824 | I137: =E135 -> 1200 | J137: =I137*(1+J136) -> 1680 | K137: =J137*(1+K136) -> 2268 | L137: =K137*(1+L136) -> 2948.4 | M137: =L137*(1+M136) -> 3832.92 | N137: =M137*(1+N136) -> 4599.504
C139: Pricing assumptions
C140: Product 5 | G140: NGN Inputs
C141: Total PAYG | D141: =$E$9 -> USD | E141: =E142 + (E143*E144) -> 300
C142: Down Payment | D142: USD | E142: =IF($E$9="NGN",G142,(G142/$E$288)) -> 150 | G142: 60000
C143: Monthly fees | D143: USD | E143: =IF($E$9="NGN",G143,(G143/$E$288)) -> 12.5 | G143: 5000
C144: Tenure | D144: Months | E144: 12
C146: Default rate | D146: % | E146: 0.2
C148: Sales assumptions
C149: Product 6
C150: Initial sales (2020) | D150: # | E150: 800 | I150: =$E$8 -> 2020 | J150: =I150+1 -> 2021 | K150: =J150+1 -> 2022 | L150: =K150+1 -> 2023 | M150: =L150+1 -> 2024 | N150: =M150+1 -> 2025
C151: Annual sales growth | D151: # | J151: =J299 -> 0.4 | K151: =K299 -> 0.35 | L151: 0.3 | M151: 0.3 | N151: 0.2
C152: Total sales | E152: =SUM(I152:Q152) -> 11019.216 | I152: =E150 -> 800 | J152: =I152*(1+J151) -> 1120 | K152: =J152*(1+K151) -> 1512 | L152: =K152*(1+L151) -> 1965.6 | M152: =L152*(1+M151) -> 2555.28 | N152: =M152*(1+N151) -> 3066.336
C154: Pricing assumptions
C155: Product 6 | G155: NGN Inputs
C156: Total PAYG | D156: =$E$9 -> USD | E156: =E157 + (E158*E159) -> 737.5
C157: Down Payment | D157: USD | E157: =IF($E$9="NGN",G157,(G157/$E$288)) -> 587.5 | G157: 235000
C158: Monthly fees | D158: USD | E158: =IF($E$9="NGN",G158,(G158/$E$288)) -> 12.5 | G158: 5000
C159: Tenure | D159: Months | E159: 12
C161: Default rate | D161: % | E161: 0.2
C163: Coporate overhead | G163: NGN Inputs
C164: Employees and salaries | E164: Per employee | I164: =Start_Year -> 2020 | J164: =I164+1 -> 2021 | K164: =J164+1 -> 2022 | L164: 2023 | M164: 2024 | N164: =M164+1 -> 2025
C165: Artisan (Technician, Electrician) | D165: =CONCATENATE($E$9," ","annual") -> USD annual | E165: =IF($E$9="NGN",G165,(G165/$E$288)) -> 900 | G165: 360000 | I165: 1 | J165: 2 | K165: 2 | L165: 4 | M165: 4 | N165: 5
C166: Technical Manager | D166: =CONCATENATE($E$9," ","annual") -> USD annual | E166: 1200 | G166: 480000 | I166: 1 | J166: 1 | K166: 1 | L166: 2 | M166: 2 | N166: 2
C167: HR and Admin Manager | D167: USD annual | E167: 1500 | G167: 600000 | I167: 1 | J167: 1 | K167: 1 | L167: 2 | M167: 2 | N167: 2
C168: Marketing & PR Executive | D168: USD annual | E168: 1350 | G168: 540000 | I168: 1 | J168: 2 | K168: 2 | L168: 3 | M168: 3 | N168: 4
C169: Logistics and Stock Control | D169: USD annual | E169: 600 | G169: 240000 | I169: 1 | J169: 1 | K169: 1 | L169: 2 | M169: 2 | N169: 2
C170: IT Support | D170: USD annual | E170: 600 | G170: 240000 | I170: 1 | J170: 1 | K170: 1 | L170: 2 | M170: 2 | N170: 3
C171: Employee benefits & payroll tax | D171: % payroll | E171: 0.025
C173: Total corporate salaries and benefits | D173: =CONCATENATE($E$9," ","annual") -> USD annual | I173: =SUMPRODUCT($E$165:$E$170,I165:I170) + SUMPRODUCT($E$165:$E$170,I165:I170)*$E$171 -> 6303.75 | J173: 8610 | K173: 8610 | L173: 15836.25 | M173: 15836.25 | N173: 18757.5
G174: NGN Inputs
C175: Office
C176: Head office rent | D176: =CONCATENATE($E$9," ","annual") -> USD annual | E176: =IF($E$9="NGN",G176,(G176/$E$288)) -> 600 | G176: 240000
C177: Warehouse rent | D177: USD annual | E177: =IF($E$9="NGN",G177,(G177/$E$288)) -> 2125 | G177: 850000
C178: Maintenance | D178: USD annual | E178: =IF($E$9="NGN",G178,(G178/$E$288)) -> 737.5 | G178: 295000
C179: Technology & communications | D179: USD annual | E179: =IF($E$9="NGN",G179,(G179/$E$288)) -> 280 | G179: 112000
C181: Total office expenses | D181: =CONCATENATE($E$9," ","annual") -> USD annual | E181: =SUM(E176:E179) -> 3742.5
G182: NGN Inputs
C183: Administration | G183: Annual increase
C184: Insurance | D184: =CONCATENATE($E$9," ","annual") -> USD annual | E184: =IF($E$9="NGN",G184,(G184/$E$288)) -> 387.5 | G184: 155000
C185: Legal | D185: USD annual | E185: =IF($E$9="NGN",G185,(G185/$E$288)) -> 445 | G185: 178000
C186: Travel expenses | D186: USD annual | E186: =IF($E$9="NGN",G186,(G186/$E$288)) -> 812.5 | G186: 325000
C188: Total administration expenses | D188: =CONCATENATE($E$9," ","annual") -> USD annual | E188: =SUM(E184:E186) -> 1645
C190: Direct sales and service costs | I190: =$E$8 -> 2020 | J190: =I190+1 -> 2021 | K190: =J190+1 -> 2022 | L190: 2023 | M190: 2024 | N190: 2025
C191: New service centers | D191: # | I191: 1 | J191: 1 | K191: 1 | L191: 1 | M191: 1 | N191: 1
C192: Active service centers | D192: # | I192: =SUM(I191) -> 1 | J192: =SUM($I$191:J191) -> 2 | K192: =SUM($I$191:K191) -> 3 | L192: =SUM($I$191:L191) -> 4 | M192: =SUM($I$191:M191) -> 5 | N192: =SUM($I$191:N191) -> 6
G193: NGN Inputs
C194: Service center rent | D194: =CONCATENATE($E$9," ","annual") -> USD annual | E194: =IF($E$9="NGN",G194,(G194/$E$288)) -> 375 | G194: 150000
C196: Marketing (% revenue) | D196: % | E196: 0.02
G197: NGN Inputs
C198: Salaries (per service center) | E198: Salary | I198: =$E$8 -> 2020 | J198: =I198+1 -> 2021 | K198: =J198+1 -> 2022 | L198: 2023 | M198: 2024 | N198: 2025
C199: Sales Agent | D199: =CONCATENATE($E$9," ","annual") -> USD annual | E199: =IF($E$9="NGN",G199,(G199/$E$288)) -> 900 | G199: 360000 | I199: 2 | J199: 2 | K199: 2 | L199: 2 | M199: 2 | N199: 2
C200: Technician | D200: USD annual | E200: =IF($E$9="NGN",G200,(G200/$E$288)) -> 900 | G200: 360000 | I200: 2 | J200: 2 | K200: 2 | L200: 2 | M200: 2 | N200: 2
C201: Local labour (periodic) | D201: USD annual | E201: =IF($E$9="NGN",G201,(G201/$E$288)) -> 0 | G201: 0
C202: Security | D202: USD annual | E202: =IF($E$9="NGN",G202,(G202/$E$288)) -> 0 | G202: 0
C203: Driver | D203: USD annual | E203: =IF($E$9="NGN",G203,(G203/$E$288)) -> 0 | G203: 0
C204: Total salaries per service center | D204: USD annual | I204: =($E$199*I199)+($E$200*I200)+($E$201*I201)+($E$202*I202)+($E$203*I203) -> 3600 | J204: 3600 | K204: 3600 | L204: 3600 | M204: 3600 | N204: 3600
C206: Total direct and service costs | D206: =CONCATENATE($E$9," ","annual") -> USD annual | I206: =(I192*$E$194) +($E$196*Model!I16)+Inputs!I$204 -> 57375 | J206: =(J192*$E$194) +($E$196*Model!J16)+Inputs!J$204 -> 79110 | K206: =(K192*$E$194) +($E$196*Model!K16)+Inputs!K$204 -> 105651 | L206: =(L192*$E$194) +($E$196*Model!L16)+Inputs!L$204 -> 136303.8 | M206: =(M192*$E$194) +($E$196*Model!M16)+Inputs!M$204 -> 176039.94 | N206: =(N192*$E$194) +($E$196*Model!N16)+Inputs!N$204 -> 210527.928
A209: ● | C209: Working capital
C211: Days in period | D211: # | E211: 365
C213: Receivable days | D213: # | E213: 15
C214: Payable days | D214: # | E214: 20
C215: Inventory days | D215: # | E215: 52
A217: ● | C217: Depreciation and Tax
C219: Depreciation of corporate PP&E
C220: Existing PP&E
C221: Beginning PP&E | D221: =$E$9 -> USD | E221: =E235 -> 3000 | I221: SL Deprec
C222: Depreciation rate | D222: years | E222: 10 | I222: =1/E222 -> 0.1
C224: Additions to PP&E | I224: =$E$8 -> 2020 | J224: =I224+1 -> 2021 | K224: =J224+1 -> 2022 | L224: =K224+1 -> 2023 | M224: =L224+1 -> 2024 | N224: =M224+1 -> 2025
C225: Equipment | D225: =$E$9 -> USD | I225: =IF($E$9="NGN",I226,(I226/I287)) -> 0 | J225: =IF($E$9="NGN",J226,(J226/J287)) -> 4861.111111 | K225: 3322.187929 | L225: 0 | M225: 0 | N225: 2041.749591
I226: 0 | J226: 2100000 | K226: 1550000 | L226: 0 | M226: 0 | N226: 1200000
C227: Tax
C228: VAT on sales | D228: % | E228: 0.075
C229: Income tax | D229: % PBT | E229: 0.32
A231: ● | C231: Balance sheet (2019)
C233: Assets | G233: NGN Inputs
C234: Cash & Cash equivalent | D234: =$E$9 -> USD | E234: =IF($E$9="NGN",G234,(G234/$E$288)) -> 2125 | G234: 850000
C235: Non-current assets | D235: USD | E235: =IF($E$9="NGN",G235,(G235/$E$288)) -> 3000 | G235: 1200000
C236: Trade & other receivables | D236: USD | E236: =IF($E$9="NGN",G236,(G236/$E$288)) -> 0 | G236: 0
C238: Liabilities | G238: NGN Inputs
C239: Long term loans | D239: =$E$9 -> USD | E239: =IF($E$9="NGN",G239,(G239/$E$288)) -> 0 | G239: 0
C240: Trade & other payables | D240: USD | E240: =IF($E$9="NGN",G240,(G240/$E$288)) -> 0 | G240: 0
C242: Equity | G242: NGN Inputs
C243: Equity | D243: =$E$9 -> USD | E243: =IF($E$9="NGN",G243,(G243/$E$288)) -> 4025 | G243: 1610000
C244: Retained earnings | D244: USD | E244: =IF($E$9="NGN",G244,(G244/$E$288)) -> 1100 | G244: 440000
C246: Balance Check | D246: OK/Error | E246: =IF(SUM(E234:E236)-SUM(E239:E240,E243:E244)=0,0,1) -> 0
A249: ● | C249: Financing
C251: Equity and grants
C252: Equity | I252: =$E$8 -> 2020 | J252: =I252+1 -> 2021 | K252: =J252+1 -> 2022 | L252: 2023 | M252: 2024 | N252: 2025
C253: Equity investment | D253: NGN | E253: =SUM(J253:N253) -> 0 | I253: =IF($E$9="NGN",I254,(I254/I287)) -> 0 | J253: =IF($E$9="NGN",J254,(J254/J287)) -> 0 | K253: 0 | L253: 0 | M253: 0 | N253: 0
I254: 0 | J254: 0 | K254: 0 | L254: 0 | M254: 0 | N254: 0
C256: Grants | I256: =$E$8 -> 2020 | J256: =I256+1 -> 2021 | K256: =J256+1 -> 2022 | L256: 2023 | M256: 2024 | N256: 2025
C257: Grants | D257: USD | E257: =SUM(I257:N257) -> 50000 | I257: 50000
C259: Debt
C260: NGN Debt
C261: Lender name | D261: Name
C262: Amount | D262: Naira
C263: Interest rate | D263: %
C264: Grace period | D264: Months
C265: Tenor | D265: Months
... 60 more rows

Sheet Model
C1: =Name_Model -> FGN 5M Solar Connections Facility - SHS
C3: Model
I5: =CONCATENATE("Annual summary"," ",Inputs!$E$9) -> Annual summary USD
C6: Year | I6: =Start_Year -> 2020 | J6: =I6+1 -> 2021 | K6: =J6+1 -> 2022 | L6: 2023 | M6: 2024 | N6: 2025
C7: Period start | I7: =Inputs!E7 -> 2020-01-01 | J7: =EOMONTH(I7,11)+1 -> 2021-01-01 | K7: =EOMONTH(J7,11)+1 -> 2022-01-01 | L7: 2023-01-01 | M7: 2024-01-01 | N7: 2025-01-01
C8: Period end | H8: 2020-01-01 | I8: =EOMONTH(I7,11) -> 2020-12-31 | J8: =EOMONTH(J7,11) -> 2021-12-31 | K8: 2022-12-31 | L8: 2023-12-31 | M8: 2024-12-31 | N8: =EOMONTH(N7,11) -> 2025-12-31
C9: Period
C10: Inflation index | I10: =Inputs!I284 -> 1 | J10: =Inputs!J284 -> 1.1 | K10: =Inputs!K284 -> 1.21 | L10: =Inputs!L284 -> 1.331 | M10: =Inputs!M284 -> 1.4641 | N10: =Inputs!N284 -> 1.61051
C11: USD:Naira FX rate (EOP) | H11: =Inputs!E288 -> 400 | I11: =Inputs!I287 -> 400 | J11: =Inputs!J287 -> 432 | K11: =Inputs!K287 -> 466.56 | L11: =Inputs!L287 -> 503.8848 | M11: =Inputs!M287 -> 544.195584 | N11: =Inputs!N287 -> 587.7312307
A13: ● | C13: Income Statement
C15: Gross income
C16: Sales revenue | D16: =Inputs!$E$9 -> USD | I16: =I120+I130+I140+I150+I160+I170 -> 2670000 | J16: =J120+J130+J140+J150+J160+J170 -> 3738000 | K16: 5046300 | L16: 6560190 | M16: 8528247 | N16: 10233896.4
C17: COGS | D17: =Inputs!$E$9 -> USD | I17: =-(Inputs!$E$34*Inputs!I77)+-(Inputs!$E$41*Inputs!I92)+-(Inputs!$E$48*Inputs!I107)+-(Inputs!$E$55*Inputs!I122)+-(Inputs!$E$62*Inputs!I137)+-(Inputs!$E$69*Inputs!I152) -> -1869525 | J17: =-(Inputs!$E$34*Inputs!J77)+-(Inputs!$E$41*Inputs!J92)+-(Inputs!$E$48*Inputs!J107)+-(Inputs!$E$55*Inputs!J122)+-(Inputs!$E$62*Inputs!J137)+-(Inputs!$E$69*Inputs!J152) -> -2617335 | K17: =-(Inputs!$E$34*Inputs!K77)+-(Inputs!$E$41*Inputs!K92)+-(Inputs!$E$48*Inputs!K107)+-(Inputs!$E$55*Inputs!K122)+-(Inputs!$E$62*Inputs!K137)+-(Inputs!$E$69*Inputs!K152) -> -3533402.25 | L17: =-(Inputs!$E$34*Inputs!L77)+-(Inputs!$E$41*Inputs!L92)+-(Inputs!$E$48*Inputs!L107)+-(Inputs!$E$55*Inputs!L122)+-(Inputs!$E$62*Inputs!L137)+-(Inputs!$E$69*Inputs!L152) -> -4593422.925 | M17: =-(Inputs!$E$34*Inputs!M77)+-(Inputs!$E$41*Inputs!M92)+-(Inputs!$E$48*Inputs!M107)+-(Inputs!$E$55*Inputs!M122)+-(Inputs!$E$62*Inputs!M137)+-(Inputs!$E$69*Inputs!M152) -> -5971449.803 | N17: =-(Inputs!$E$34*Inputs!N77)+-(Inputs!$E$41*Inputs!N92)+-(Inputs!$E$48*Inputs!N107)+-(Inputs!$E$55*Inputs!N122)+-(Inputs!$E$62*Inputs!N137)+-(Inputs!$E$69*Inputs!N152) -> -7165739.763
C18: Total gross income | D18: =Inputs!$E$9 -> USD | I18: =I16+I17 -> 800475 | J18: =J16+J17 -> 1120665 | K18: 1512897.75 | L18: 1966767.075 | M18: 2556797.198 | N18: 3068156.637
C20: Operating costs
C21: Corporate salaries and benefits | D21: =Inputs!$E$9 -> USD | I21: =-Inputs!I173 *I10 -> -6303.75 | J21: =-Inputs!J173 *J10 -> -9471 | K21: =-Inputs!K173 *K10 -> -10418.1 | L21: =-Inputs!L173 *L10 -> -21078.04875 | M21: =-Inputs!M173 *M10 -> -23185.85363 | N21: =-Inputs!N173 *N10 -> -30209.14133
C22: Corporate office expenses | D22: =Inputs!$E$9 -> USD | I22: =-Inputs!$E$181*I10 -> -3742.5 | J22: =-Inputs!$E$181*J10 -> -4116.75 | K22: =-Inputs!$E$181*K10 -> -4528.425 | L22: =-Inputs!$E$181*L10 -> -4981.2675 | M22: =-Inputs!$E$181*M10 -> -5479.39425 | N22: =-Inputs!$E$181*N10 -> -6027.333675
C23: Corporate administrative expenses | D23: =Inputs!$E$9 -> USD | I23: =-Inputs!$E$188*I10 -> -1645 | J23: =-Inputs!$E$188*J10 -> -1809.5 | K23: =-Inputs!$E$188*K10 -> -1990.45 | L23: =-Inputs!$E$188*L10 -> -2189.495 | M23: =-Inputs!$E$188*M10 -> -2408.4445 | N23: =-Inputs!$E$188*N10 -> -2649.28895
C24: Direct sales and service cost | D24: =Inputs!$E$9 -> USD | I24: =-Inputs!I206*I10 -> -57375 | J24: =-Inputs!J206*J10 -> -87021 | K24: =-Inputs!K206*K10 -> -127837.71 | L24: =-Inputs!L206*L10 -> -181420.3578 | M24: =-Inputs!M206*M10 -> -257740.0762 | N24: =-Inputs!N206*N10 -> -339057.3333
C25: Total operating costs | D25: =Inputs!$E$9 -> USD | I25: =SUM(I21:I24) -> -69066.25 | J25: -102418.25 | K25: -144774.685 | L25: -209669.1691 | M25: -288813.7685 | N25: -377943.0973
C27: VAT on sales | D27: =Inputs!$E$9 -> USD | F27: =Inputs!E228 -> 0.075 | I27: =-$F$27*I16 -> -200250 | J27: -280350 | K27: -378472.5 | L27: -492014.25 | M27: -639618.525 | N27: -767542.23
C29: EBITDA | D29: =Inputs!$E$9 -> USD | I29: =I18+I25+I27 -> 531158.75 | J29: 737896.75 | K29: 989650.565 | L29: 1265083.656 | M29: 1628364.904 | N29: 1922671.31
C31: Depreciation | D31: =Inputs!$E$9 -> USD | I31: =-(I180) -> -300 | J31: =-(J180) -> -270 | K31: -729.1111111 | L31: -988.4187929 | M31: -889.5769136 | N31: -800.6192222
C33: EBIT | D33: =Inputs!$E$9 -> USD | I33: =I29+I31 -> 530858.75 | J33: =J29+J31 -> 737626.75 | K33: 988921.4539 | L33: 1264095.237 | M33: 1627475.327 | N33: 1921870.691
C35: Interest expense | D35: =Inputs!$E$9 -> USD | I35: =-(IF(Inputs!$E$9="NGN",(I213+I229),I222)) -> -2500 | J35: =-(IF(Inputs!$E$9="NGN",(J213+J229),J222)) -> -1875 | K35: =-(IF(Inputs!$E$9="NGN",(K213+K229),K222)) -> -1250 | L35: =-(IF(Inputs!$E$9="NGN",(L213+L229),L222)) -> -625 | M35: =-(IF(Inputs!$E$9="NGN",(M213+M229),M222)) -> 0 | N35: =-(IF(Inputs!$E$9="NGN",(N213+N229),N222)) -> 0
C36: FX (gains)/losses | D36: =Inputs!$E$9 -> USD | I36: =(IF(Inputs!$E$9="NGN",I228,0)) -> 0 | J36: =(IF(Inputs!$E$9="NGN",J228,0)) -> 0 | K36: =(IF(Inputs!$E$9="NGN",K228,0)) -> 0 | L36: =(IF(Inputs!$E$9="NGN",L228,0)) -> 0 | M36: =(IF(Inputs!$E$9="NGN",M228,0)) -> 0 | N36: =(IF(Inputs!$E$9="NGN",N228,0)) -> 0
C38: EBT | D38: =Inputs!$E$9 -> USD | I38: =I33+SUM(I35:I36) -> 528358.75 | J38: =J33+SUM(J35:J36) -> 735751.75 | K38: 987671.4539 | L38: 1263470.237 | M38: 1627475.327 | N38: 1921870.691
C40: Income tax payable | D40: =Inputs!$E$9 -> USD | F40: =Inputs!E229 -> 0.32 | I40: =-$F40*MAX(I38,0) -> -169074.8 | J40: =-$F40*MAX(J38,0) -> -235440.56 | K40: -316054.8652 | L40: -404310.4759 | M40: -520792.1047 | N40: -614998.621
C42: Net income | D42: =Inputs!$E$9 -> USD | I42: =I38+I40 -> 359283.95 | J42: =J38+J40 -> 500311.19 | K42: 671616.5886 | L42: 859159.7613 | M42: 1106683.222 | N42: 1306872.07
A44: ● | C44: Balance Sheet
C46: Assets
C47: Current assets
C48: Cash and equivalents | D48: =Inputs!$E$9 -> USD | I48: =I103 -> 188079.361 | J48: =J103 -> 561847.6042 | K48: 1084292.617 | L48: 1776792.821 | M48: 2670173.25 | N48: 3801004.135
C49: Trade & other receivables | D49: =Inputs!$E$9 -> USD | I49: =I187 -> 0 | J49: =J187 -> 0 | K49: 0 | L49: 0 | M49: 0 | N49: 0
C50: Accounts receivable, net | D50: =Inputs!$E$9 -> USD | I50: =I188 -> 109726.0274 | J50: =J188 -> 153616.4384 | K50: 207382.1918 | L50: 269596.8493 | M50: 350475.9041 | N50: =N188 -> 420571.0849
C51: Inventory | D51: =Inputs!$E$9 -> USD | I51: =I189 -> 266343.2877 | J51: 372880.6027 | K51: 503388.8137 | L51: 654405.4578 | M51: 850727.0952 | N51: =N189 -> 1020872.514
C52: Total current assets | D52: =Inputs!$E$9 -> USD | I52: =SUM(I48:I51) -> 564148.676 | J52: 1088344.645 | K52: 1795063.623 | L52: 2700795.128 | M52: 3871376.249 | N52: 5242447.734
C54: PP&E | I54: =I181 -> 2700 | J54: =J181 -> 7291.111111 | K54: 9884.187929 | L54: 8895.769136 | M54: 8006.192222 | N54: =N181 -> 9247.322591
C55: Total assets | D55: =Inputs!$E$9 -> USD | I55: =I52+I54 -> 566848.676 | J55: =J52+J54 -> 1095635.756 | K55: 1804947.811 | L55: 2709690.897 | M55: 3879382.441 | N55: =N52+N54 -> 5251695.057
C57: Trade and other payables | D57: =Inputs!$E$9 -> USD | I57: =I193 -> 0 | J57: =J193 -> 0 | K57: 0 | L57: 0 | M57: 0 | N57: 0
C58: Accounts payable, net | D58: =Inputs!$E$9 -> USD | I58: =I194 -> 102439.726 | J58: =J194 -> 143415.6164 | K58: 193611.0822 | L58: 251694.4068 | M58: 327202.7289 | N58: =N194 -> 392643.2747
C59: Total current liabilities | D59: =Inputs!$E$9 -> USD | I59: =SUM(I57:I58) -> 102439.726 | J59: =SUM(J57:J58) -> 143415.6164 | K59: 193611.0822 | L59: 251694.4068 | M59: 327202.7289 | N59: 392643.2747
C61: Non-interest bearing debt | D61: =Inputs!$E$9 -> USD | H61: =Inputs!E239 -> 0 | I61: =$H$61 -> 0 | J61: =$H$61 -> 0 | K61: 0 | L61: 0 | M61: 0 | N61: 0
C62: NGN Debt | D62: =Inputs!$E$9 -> USD | I62: =I212 -> 0 | J62: =J212 -> 0 | K62: 0 | L62: 0 | M62: 0 | N62: 0
C63: USD Debt | D63: =Inputs!$E$9 -> USD | I63: =(IF(Inputs!$E$9="NGN",I227,I221)) -> 50000 | J63: =(IF(Inputs!$E$9="NGN",J227,J221)) -> 37500 | K63: =(IF(Inputs!$E$9="NGN",K227,K221)) -> 25000 | L63: =(IF(Inputs!$E$9="NGN",L227,L221)) -> 12500 | M63: =(IF(Inputs!$E$9="NGN",M227,M221)) -> 0 | N63: =(IF(Inputs!$E$9="NGN",N227,N221)) -> 0
C64: Total liabilities | D64: =Inputs!$E$9 -> USD | I64: =SUM(I61:I63) +I59 -> 152439.726 | J64: 180915.6164 | K64: 218611.0822 | L64: 264194.4068 | M64: 327202.7289 | N64: 392643.2747
C67: Equity | D67: =Inputs!$E$9 -> USD | H67: =Inputs!E243 -> 4025 | I67: =H67+Inputs!I253 -> 4025 | J67: =I67+Inputs!J253 -> 4025 | K67: =J67+Inputs!K253 -> 4025 | L67: =K67+Inputs!L253 -> 4025 | M67: =L67+Inputs!M253 -> 4025 | N67: =M67+Inputs!N253 -> 4025
C68: Grant capital | D68: =Inputs!$E$9 -> USD | I68: =I98 -> 50000 | J68: =I68+J98 -> 50000 | K68: =J68+K98 -> 50000 | L68: 50000 | M68: 50000 | N68: 50000
C69: Retained earnings | D69: =Inputs!$E$9 -> USD | H69: =Inputs!E244 -> 1100 | I69: =H69+I42 -> 360383.95 | J69: 860695.14 | K69: 1532311.729 | L69: 2391471.49 | M69: 3498154.712 | N69: 4805026.782
C70: Total Equity | D70: =Inputs!$E$9 -> USD | I70: =SUM(I67:I69) -> 414408.95 | J70: =SUM(J67:J69) -> 914720.14 | K70: 1586336.729 | L70: 2445496.49 | M70: 3552179.712 | N70: 4859051.782
C72: Total liabilities and equity | I72: =I70+I64 -> 566848.676 | J72: 1095635.756 | K72: 1804947.811 | L72: 2709690.897 | M72: 3879382.441 | N72: =N70+N64 -> 5251695.057
C74: Balance Check | D74: OK/Error | H74: =IF(ROUND(SUM(I74:N74),1)<>0,1,0) -> 0 | I74: =I55-I72 -> 0 | J74: 0 | K74: 0 | L74: 0 | M74: 0 | N74: 0
A77: ● | C77: Cashflow
C79: Operating activities
C80: Net income | D80: =Inputs!$E$9 -> USD | I80: =I42 -> 359283.95 | J80: 500311.19 | K80: 671616.5886 | L80: 859159.7613 | M80: 1106683.222 | N80: 1306872.07
C81: Depreciation | D81: =Inputs!$E$9 -> USD | I81: =-I31 -> 300 | J81: 270 | K81: 729.1111111 | L81: 988.4187929 | M81: 889.5769136 | N81: 800.6192222
C82: FX (gains)/losses | D82: =Inputs!$E$9 -> USD | I82: =I36 -> 0 | J82: =J36 -> 0 | K82: 0 | L82: 0 | M82: 0 | N82: 0
C83: (Increase)/decrease in working capital | D83: =Inputs!$E$9 -> USD | I83: =I199 -> -273629.589 | J83: -109451.8356 | K83: -134078.4986 | L83: -155147.977 | M83: -201692.3701 | N83: -174800.0541
C84: Cash flow from operating activities | D84: =Inputs!$E$9 -> USD | I84: =SUM(I80:I83) -> 85954.36096 | J84: =SUM(J80:J83) -> 391129.3544 | K84: 538267.2011 | L84: 705000.2031 | M84: 905880.4292 | N84: 1132872.635
C86: Investing activities
C87: Capital expenditure | D87: =Inputs!$E$9 -> USD | I87: =-(I179) -> 0 | J87: =-(J179) -> -4861.111111 | K87: -3322.187929 | L87: 0 | M87: 0 | N87: =-(N179) -> -2041.749591
C88: Cash flow from investing activities | D88: =Inputs!$E$9 -> USD | I88: =SUM(I87) -> 0 | J88: =SUM(J87) -> -4861.111111 | K88: -3322.187929 | L88: 0 | M88: 0 | N88: =SUM(N87) -> -2041.749591
C90: Cash available for financing activities | D90: =Inputs!$E$9 -> USD | I90: =I84+I88 -> 85954.36096 | J90: =J84+J88 -> 386268.2433 | K90: 534945.0132 | L90: 705000.2031 | M90: 905880.4292 | N90: =N84+N88 -> 1130830.885
C92: Financing activities
C93: (Repayment) of NGN debt | D93: =Inputs!$E$9 -> USD | I93: =-(IF(Inputs!$E$9="NGN",I211,(I211/I11))) -> 0 | J93: =-(IF(Inputs!$E$9="NGN",J211,(J211/J11))) -> 0 | K93: =-(IF(Inputs!$E$9="NGN",K211,(K211/K11))) -> 0 | L93: =-(IF(Inputs!$E$9="NGN",L211,(L211/L11))) -> 0 | M93: =-(IF(Inputs!$E$9="NGN",M211,(M211/M11))) -> 0 | N93: =-(IF(Inputs!$E$9="NGN",N211,(N211/N11))) -> 0
C94: (Repayment) of USD debt | D94: =Inputs!$E$9 -> USD | I94: =-(IF(Inputs!$E$9="NGN",I226,I220)) -> 0 | J94: =-(IF(Inputs!$E$9="NGN",J226,J220)) -> -12500 | K94: =-(IF(Inputs!$E$9="NGN",K226,K220)) -> -12500 | L94: =-(IF(Inputs!$E$9="NGN",L226,L220)) -> -12500 | M94: =-(IF(Inputs!$E$9="NGN",M226,M220)) -> -12500 | N94: =-(IF(Inputs!$E$9="NGN",N226,N220)) -> 0
C95: Issuance of NGN debt | D95: =Inputs!$E$9 -> USD | I95: =IF(Inputs!$E$9="NGN",I209,(I209/I11)) -> 0 | J95: =IF(Inputs!$E$9="NGN",J209,(J209/J11)) -> 0 | K95: =IF(Inputs!$E$9="NGN",K209,(K209/K11)) -> 0 | L95: =IF(Inputs!$E$9="NGN",L209,(L209/L11)) -> 0 | M95: =IF(Inputs!$E$9="NGN",M209,(M209/M11)) -> 0 | N95: =IF(Inputs!$E$9="NGN",N209,(N209/N11)) -> 0
C96: Issuance of USD debt | D96: =Inputs!$E$9 -> USD | I96: =IF(Inputs!$E$9="NGN",I225,I218) -> 50000 | J96: =IF(Inputs!$E$9="NGN",J225,J218) -> 0 | K96: =IF(Inputs!$E$9="NGN",K225,K218) -> 0 | L96: =IF(Inputs!$E$9="NGN",L225,L218) -> 0 | M96: =IF(Inputs!$E$9="NGN",M225,M218) -> 0 | N96: =IF(Inputs!$E$9="NGN",N225,N218) -> 0
C97: Increase / (decrease) in equity | D97: =Inputs!$E$9 -> USD | I97: =I67-H67 -> 0 | J97: 0 | K97: 0 | L97: 0 | M97: 0 | N97: 0
C98: Receipt of grants | D98: =Inputs!$E$9 -> USD | I98: =IF(Inputs!$E$9="NGN",(Inputs!I257*I11),(Inputs!I257)) -> 50000 | J98: =IF(Inputs!$E$9="NGN",(Inputs!J257*J11),(Inputs!J257)) -> 0 | K98: =IF(Inputs!$E$9="NGN",(Inputs!K257*K11),(Inputs!K257)) -> 0 | L98: =IF(Inputs!$E$9="NGN",(Inputs!L257*L11),(Inputs!L257)) -> 0 | M98: =IF(Inputs!$E$9="NGN",(Inputs!M257*M11),(Inputs!M257)) -> 0 | N98: =IF(Inputs!$E$9="NGN",(Inputs!N257*N11),(Inputs!N257)) -> 0
C99: Cash flow from financing activities | D99: =Inputs!$E$9 -> USD | I99: =SUM(I93:I98) -> 100000 | J99: =SUM(J93:J98) -> -12500 | K99: -12500 | L99: -12500 | M99: -12500 | N99: 0
C101: Net change in cash | D101: =Inputs!$E$9 -> USD | I101: =I90+I99 -> 185954.361 | J101: 373768.2433 | K101: 522445.0132 | L101: 692500.2031 | M101: 893380.4292 | N101: 1130830.885
C102: Beginning cash balance | D102: =Inputs!$E$9 -> USD | I102: =Inputs!E234 -> 2125 | J102: =I103 -> 188079.361 | K102: =J103 -> 561847.6042 | L102: 1084292.617 | M102: 1776792.821 | N102: 2670173.25
C103: Ending cash balance | D103: =Inputs!$E$9 -> USD | I103: =I101+I102 -> 188079.361 | J103: =J101+J102 -> 561847.6042 | K103: =K101+K102 -> 1084292.617 | L103: 1776792.821 | M103: 2670173.25 | N103: =N101+N102 -> 3801004.135 | P103: =IF(MIN(Q103:Q103)<0,1,0) -> 0
C105: Distributions to equity
C106: Distributions to equity | D106: =Inputs!$E$9 -> USD | I106: =I90+I93+I94-I97 -> 85954.36096 | J106: =J90+J93+J94-J97 -> 373768.2433 | K106: 522445.0132 | L106: 692500.2031 | M106: 893380.4292 | N106: 1130830.885
A108: ● | C108: Sales
C110: Period | H110: 0 | I110: =H110+1 -> 1 | J110: =I110+1 -> 2 | K110: 3 | L110: 4 | M110: 5 | N110: 6
C112: Sales calculations
C113: Product 1 sales
C114: Sales percentage | D114: % | I114: =INDEX(Inputs!$I$76:$N$76,,MATCH(I6,Inputs!$I$75:$N$75,0)) -> 0 | J114: =INDEX(Inputs!$I$76:$P$76,,MATCH(J6,Inputs!$I$75:$P$75,0)) -> 0.4 | K114: =INDEX(Inputs!$I$76:$P$76,,MATCH(K6,Inputs!$I$75:$P$75,0)) -> 0.35 | L114: =INDEX(Inputs!$I$76:$P$76,,MATCH(L6,Inputs!$I$75:$P$75,0)) -> 0.3 | M114: =INDEX(Inputs!$I$76:$P$76,,MATCH(M6,Inputs!$I$75:$P$75,0)) -> 0.3 | N114: =INDEX(Inputs!$I$76:$P$76,,MATCH(N6,Inputs!$I$75:$P$75,0)) -> 0.2
C115: Annual sales | D115: # | I115: =Inputs!E75 -> 1200 | J115: =I115*(1+J114) -> 1680 | K115: =J115*(1+K114) -> 2268 | L115: 2948.4 | M115: 3832.92 | N115: 4599.504
C117: Down payment revenue | D117: =Inputs!$E$9 -> USD | F117: =Inputs!E82 -> 150 | I117: =I115*$F$117 -> 180000 | J117: =J115*$F$117 -> 252000 | K117: 340200 | L117: 442260 | M117: 574938 | N117: =N115*$F$117 -> 689925.6
C118: Monthly payment revenue | D118: =Inputs!$E$9 -> USD | F118: =Inputs!E83*Inputs!E84 -> 150 | I118: =$F$118*I115 -> 180000 | J118: =$F$118*J115 -> 252000 | K118: 340200 | L118: 442260 | M118: 574938 | N118: =$F$118*N115 -> 689925.6
C119: Default rates | D119: % | F119: =Inputs!E86 -> 0.2 | I119: =$F$119*(I118) -> 36000 | J119: =$F$119*(J118) -> 50400 | K119: 68040 | L119: 88452 | M119: 114987.6 | N119: 137985.12
C120: Total product 1a revenue | D120: =Inputs!$E$9 -> USD | I120: =I117+(I118-I119) -> 324000 | J120: =J117+(J118-J119) -> 453600 | K120: 612360 | L120: 796068 | M120: 1034888.4 | N120: =N117+(N118-N119) -> 1241866.08
C122: Sales calculations
C123: Product 2 sales
C124: Sales percentage | D124: % | I124: =INDEX(Inputs!$I$91:$N$91,,MATCH(I6,Inputs!$I$90:$N$90,0)) -> 0 | J124: =INDEX(Inputs!$I$91:$P$91,,MATCH(J6,Inputs!$I$90:$P$90,0)) -> 0.4 | K124: =INDEX(Inputs!$I$91:$P$91,,MATCH(K6,Inputs!$I$90:$P$90,0)) -> 0.35 | L124: =INDEX(Inputs!$I$91:$P$91,,MATCH(L6,Inputs!$I$90:$P$90,0)) -> 0.3 | M124: =INDEX(Inputs!$I$91:$P$91,,MATCH(M6,Inputs!$I$90:$P$90,0)) -> 0.3 | N124: =INDEX(Inputs!$I$91:$P$91,,MATCH(N6,Inputs!$I$90:$P$90,0)) -> 0.2
C125: Annual sales | D125: # | I125: =Inputs!E90 -> 800 | J125: =I125*(1+J124) -> 1120 | K125: =J125*(1+K124) -> 1512 | L125: =K125*(1+L124) -> 1965.6 | M125: =L125*(1+M124) -> 2555.28 | N125: =M125*(1+N124) -> 3066.336
C127: Down payment revenue | D127: =Inputs!$E$9 -> USD | F127: =Inputs!E97 -> 587.5 | I127: =I125*$F$127 -> 470000 | J127: =J125*$F$127 -> 658000 | K127: 888300 | L127: 1154790 | M127: 1501227 | N127: 1801472.4
C128: Monthly payment revenue | D128: =Inputs!$E$9 -> USD | F128: =Inputs!E98*Inputs!E99 -> 150 | I128: =$F$128*I125 -> 120000 | J128: =$F$128*J125 -> 168000 | K128: 226800 | L128: 294840 | M128: 383292 | N128: 459950.4
C129: Default rates | D129: % | F129: =Inputs!E101 -> 0.2 | I129: =$F$129*(I128) -> 24000 | J129: =$F$129*(J128) -> 33600 | K129: 45360 | L129: 58968 | M129: 76658.4 | N129: 91990.08
C130: Total product 1b revenue | D130: =Inputs!$E$9 -> USD | I130: =I127+(I128-I129) -> 566000 | J130: =J127+(J128-J129) -> 792400 | K130: 1069740 | L130: 1390662 | M130: 1807860.6 | N130: 2169432.72
C132: Sales calculations
C133: Product 3 sales
C134: Sales percentage | D134: % | I134: =INDEX(Inputs!$I$106:$P$106,,MATCH(I6,Inputs!$I$105:$P$105,0)) -> 0 | J134: =INDEX(Inputs!$I$106:$P$106,,MATCH(J6,Inputs!$I$105:$P$105,0)) -> 0.4 | K134: =INDEX(Inputs!$I$106:$P$106,,MATCH(K6,Inputs!$I$105:$P$105,0)) -> 0.35 | L134: =INDEX(Inputs!$I$106:$P$106,,MATCH(L6,Inputs!$I$105:$P$105,0)) -> 0.3 | M134: =INDEX(Inputs!$I$106:$P$106,,MATCH(M6,Inputs!$I$105:$P$105,0)) -> 0.3 | N134: =INDEX(Inputs!$I$106:$P$106,,MATCH(N6,Inputs!$I$105:$P$105,0)) -> 0.2
C135: Annual sales | D135: # | I135: =Inputs!E105 -> 1200 | J135: =I135*(1+J134) -> 1680 | K135: =J135*(1+K134) -> 2268 | L135: =K135*(1+L134) -> 2948.4 | M135: =L135*(1+M134) -> 3832.92 | N135: =M135*(1+N134) -> 4599.504
C137: Down payment revenue | D137: =Inputs!$E$9 -> USD | F137: =Inputs!E112 -> 150 | I137: =I135*$F$137 -> 180000 | J137: =J135*$F$137 -> 252000 | K137: 340200 | L137: 442260 | M137: 574938 | N137: 689925.6
C138: Monthly payment revenue | D138: =Inputs!$E$9 -> USD | F138: =Inputs!E113*Inputs!E114 -> 150 | I138: =$F$138*I135 -> 180000 | J138: =$F$138*J135 -> 252000 | K138: 340200 | L138: 442260 | M138: 574938 | N138: 689925.6
C139: Default rates | D139: % | F139: =Inputs!E116 -> 0.2 | I139: =$F$139*(I138) -> 36000 | J139: =$F$139*(J138) -> 50400 | K139: 68040 | L139: 88452 | M139: 114987.6 | N139: 137985.12
C140: Total product 2a revenue | D140: =Inputs!$E$9 -> USD | I140: =I137+(I138-I139) -> 324000 | J140: =J137+(J138-J139) -> 453600 | K140: 612360 | L140: 796068 | M140: 1034888.4 | N140: 1241866.08
C142: Sales calculations
C143: Product 4 sales
C144: Sales percentage | D144: % | I144: =INDEX(Inputs!$I$121:$P$121,,MATCH(I6,Inputs!$I$120:$P$120,0)) -> 0 | J144: =INDEX(Inputs!$I$121:$P$121,,MATCH(J6,Inputs!$I$120:$P$120,0)) -> 0.4 | K144: =INDEX(Inputs!$I$121:$P$121,,MATCH(K6,Inputs!$I$120:$P$120,0)) -> 0.35 | L144: =INDEX(Inputs!$I$121:$P$121,,MATCH(L6,Inputs!$I$120:$P$120,0)) -> 0.3 | M144: =INDEX(Inputs!$I$121:$P$121,,MATCH(M6,Inputs!$I$120:$P$120,0)) -> 0.3 | N144: =INDEX(Inputs!$I$121:$P$121,,MATCH(N6,Inputs!$I$120:$P$120,0)) -> 0.2
C145: Annual sales | D145: # | I145: =Inputs!E120 -> 800 | J145: =I145*(1+J144) -> 1120 | K145: =J145*(1+K144) -> 1512 | L145: =K145*(1+L144) -> 1965.6 | M145: =L145*(1+M144) -> 2555.28 | N145: =M145*(1+N144) -> 3066.336
C147: Down payment revenue | D147: =Inputs!$E$9 -> USD | F147: =Inputs!E127 -> 587.5 | I147: =I145*$F$147 -> 470000 | J147: =J145*$F$147 -> 658000 | K147: 888300 | L147: 1154790 | M147: 1501227 | N147: 1801472.4
C148: Monthly payment revenue | D148: =Inputs!$E$9 -> USD | F148: =Inputs!E128*Inputs!E129 -> 150 | I148: =$F$148*I145 -> 120000 | J148: =$F$148*J145 -> 168000 | K148: 226800 | L148: 294840 | M148: 383292 | N148: 459950.4
C149: Default rates | D149: % | F149: =Inputs!E131 -> 0.2 | I149: =$F$149*(I148) -> 24000 | J149: =$F$149*(J148) -> 33600 | K149: 45360 | L149: 58968 | M149: 76658.4 | N149: 91990.08
C150: Total product 2b revenue | D150: =Inputs!$E$9 -> USD | I150: =I147+(I148-I149) -> 566000 | J150: =J147+(J148-J149) -> 792400 | K150: 1069740 | L150: 1390662 | M150: 1807860.6 | N150: 2169432.72
C152: Sales calculations
C153: Product 5 sales
C154: Sales percentage | D154: % | I154: =INDEX(Inputs!$I$136:$P$136,,MATCH(I6,Inputs!$I$135:$P$135,0)) -> 0 | J154: =INDEX(Inputs!$I$136:$P$136,,MATCH(J6,Inputs!$I$135:$P$135,0)) -> 0.4 | K154: =INDEX(Inputs!$I$136:$P$136,,MATCH(K6,Inputs!$I$135:$P$135,0)) -> 0.35 | L154: =INDEX(Inputs!$I$136:$P$136,,MATCH(L6,Inputs!$I$135:$P$135,0)) -> 0.3 | M154: =INDEX(Inputs!$I$136:$P$136,,MATCH(M6,Inputs!$I$135:$P$135,0)) -> 0.3 | N154: =INDEX(Inputs!$I$136:$P$136,,MATCH(N6,Inputs!$I$135:$P$135,0)) -> 0.2
C155: Annual sales | D155: # | I155: =Inputs!E135 -> 1200 | J155: =I155*(1+J154) -> 1680 | K155: =J155*(1+K154) -> 2268 | L155: =K155*(1+L154) -> 2948.4 | M155: =L155*(1+M154) -> 3832.92 | N155: =M155*(1+N154) -> 4599.504
C157: Down payment revenue | D157: =Inputs!$E$9 -> USD | F157: =Inputs!E142 -> 150 | I157: =I155*$F$157 -> 180000 | J157: =J155*$F$157 -> 252000 | K157: 340200 | L157: 442260 | M157: 574938 | N157: 689925.6
C158: Monthly payment revenue | D158: =Inputs!$E$9 -> USD | F158: =Inputs!E143*Inputs!E144 -> 150 | I158: =$F$158*I155 -> 180000 | J158: =$F$158*J155 -> 252000 | K158: 340200 | L158: 442260 | M158: 574938 | N158: 689925.6
C159: Default rates | D159: % | F159: =Inputs!E146 -> 0.2 | I159: =$F$159*(I158) -> 36000 | J159: =$F$159*(J158) -> 50400 | K159: 68040 | L159: 88452 | M159: 114987.6 | N159: 137985.12
C160: Total product 3a revenue | D160: =Inputs!$E$9 -> USD | I160: =I157+(I158-I159) -> 324000 | J160: =J157+(J158-J159) -> 453600 | K160: 612360 | L160: 796068 | M160: 1034888.4 | N160: 1241866.08
C162: Sales calculations
C163: Product 6 sales
C164: Sales percentage | D164: % | I164: =INDEX(Inputs!$I$151:$P$151,,MATCH(I6,Inputs!$I$150:$P$150,0)) -> 0 | J164: =INDEX(Inputs!$I$151:$P$151,,MATCH(J6,Inputs!$I$150:$P$150,0)) -> 0.4 | K164: =INDEX(Inputs!$I$151:$P$151,,MATCH(K6,Inputs!$I$150:$P$150,0)) -> 0.35 | L164: =INDEX(Inputs!$I$151:$P$151,,MATCH(L6,Inputs!$I$150:$P$150,0)) -> 0.3 | M164: =INDEX(Inputs!$I$151:$P$151,,MATCH(M6,Inputs!$I$150:$P$150,0)) -> 0.3 | N164: =INDEX(Inputs!$I$151:$P$151,,MATCH(N6,Inputs!$I$150:$P$150,0)) -> 0.2
C165: Annual sales | D165: # | I165: =Inputs!E150 -> 800 | J165: =I165*(1+J164) -> 1120 | K165: =J165*(1+K164) -> 1512 | L165: =K165*(1+L164) -> 1965.6 | M165: =L165*(1+M164) -> 2555.28 | N165: =M165*(1+N164) -> 3066.336
C167: Down payment revenue | D167: =Inputs!$E$9 -> USD | F167: =Inputs!E157 -> 587.5 | I167: =I165*$F$167 -> 470000 | J167: =J165*$F$167 -> 658000 | K167: 888300 | L167: 1154790 | M167: 1501227 | N167: 1801472.4
C168: Monthly payment revenue | D168: =Inputs!$E$9 -> USD | F168: =Inputs!E158*Inputs!E159 -> 150 | I168: =$F$168*I165 -> 120000 | J168: =$F$168*J165 -> 168000 | K168: 226800 | L168: 294840 | M168: 383292 | N168: 459950.4
C169: Default rates | D169: % | F169: =Inputs!E161 -> 0.2 | I169: =$F$169*(I168) -> 24000 | J169: =$F$169*(J168) -> 33600 | K169: 45360 | L169: 58968 | M169: 76658.4 | N169: 91990.08
C170: Total product 3b revenue | D170: =Inputs!$E$9 -> USD | I170: =I167+(I168-I169) -> 566000 | J170: =J167+(J168-J169) -> 792400 | K170: 1069740 | L170: 1390662 | M170: 1807860.6 | N170: 2169432.72
A173: ● | C173: CAPEX and Depreciation
C175: Period counter
C177: PP&E
C178: Beginning | D178: =Inputs!$E$9 -> USD | I178: =Inputs!E221 -> 3000 | J178: =I181 -> 2700 | K178: =J181 -> 7291.111111 | L178: =K181 -> 9884.187929 | M178: =L181 -> 8895.769136 | N178: 8006.192222
C179: Capex | D179: =Inputs!$E$9 -> USD | I179: =Inputs!I225 -> 0 | J179: =Inputs!J225 -> 4861.111111 | K179: =Inputs!K225 -> 3322.187929 | L179: =Inputs!L225 -> 0 | M179: =Inputs!M225 -> 0 | N179: =Inputs!N225 -> 2041.749591
C180: Depreciation | D180: =Inputs!$E$9 -> USD | F180: =Inputs!I222 -> 0.1 | I180: =$F$180*I178 -> 300 | J180: =$F$180*J178 -> 270 | K180: 729.1111111 | L180: 988.4187929 | M180: 889.5769136 | N180: 800.6192222
C181: Ending | D181: =Inputs!$E$9 -> USD | I181: =I178+I179-I180 -> 2700 | J181: =J178+J179-J180 -> 7291.111111 | K181: 9884.187929 | L181: 8895.769136 | M181: 8006.192222 | N181: =N178+N179-N180 -> 9247.322591
A183: ● | C183: Working Capital Schedule
C185: Net working capital
C186: Assets
C187: Trade & other receivables | D187: =Inputs!$E$9 -> USD | H187: =Inputs!E236 -> 0 | I187: =H187 -> 0 | J187: =I187 -> 0 | K187: =J187 -> 0 | L187: 0 | M187: 0 | N187: 0
C188: Account receivable, net | D188: =Inputs!$E$9 -> USD | I188: =(I16*Inputs!$E$213)/Inputs!$E$211 -> 109726.0274 | J188: =(J16*Inputs!$E$213)/Inputs!$E$211 -> 153616.4384 | K188: =(K16*Inputs!$E$213)/Inputs!$E$211 -> 207382.1918 | L188: =(L16*Inputs!$E$213)/Inputs!$E$211 -> 269596.8493 | M188: =(M16*Inputs!$E$213)/Inputs!$E$211 -> 350475.9041 | N188: =(N16*Inputs!$E$213)/Inputs!$E$211 -> 420571.0849
C189: Inventory | D189: =Inputs!$E$9 -> USD | I189: =(-I17*Inputs!$E$215)/Inputs!$E$211 -> 266343.2877 | J189: =(-J17*Inputs!$E$215)/Inputs!$E$211 -> 372880.6027 | K189: =(-K17*Inputs!$E$215)/Inputs!$E$211 -> 503388.8137 | L189: =(-L17*Inputs!$E$215)/Inputs!$E$211 -> 654405.4578 | M189: =(-M17*Inputs!$E$215)/Inputs!$E$211 -> 850727.0952 | N189: =(-N17*Inputs!$E$215)/Inputs!$E$211 -> 1020872.514
C190: Total current assets | D190: =Inputs!$E$9 -> USD | I190: =SUM(I187:I189) -> 376069.3151 | J190: =SUM(J187:J189) -> 526497.0411 | K190: 710771.0055 | L190: 924002.3071 | M190: 1201202.999 | N190: 1441443.599
C192: Liabilities
C193: Trade & other payables | D193: =Inputs!$E$9 -> USD | H193: =Inputs!E240 -> 0 | I193: =H193 -> 0 | J193: =I193 -> 0 | K193: =J193 -> 0 | L193: 0 | M193: 0 | N193: 0
C194: Accounts payable, net | D194: =Inputs!$E$9 -> USD | I194: =(-I17*Inputs!$E$214)/Inputs!$E$211 -> 102439.726 | J194: =(-J17*Inputs!$E$214)/Inputs!$E$211 -> 143415.6164 | K194: =(-K17*Inputs!$E$214)/Inputs!$E$211 -> 193611.0822 | L194: =(-L17*Inputs!$E$214)/Inputs!$E$211 -> 251694.4068 | M194: =(-M17*Inputs!$E$214)/Inputs!$E$211 -> 327202.7289 | N194: =(-N17*Inputs!$E$214)/Inputs!$E$211 -> 392643.2747
C195: Total current liabilities | D195: =Inputs!$E$9 -> USD | I195: =SUM(I193:I194) -> 102439.726 | J195: =SUM(J193:J194) -> 143415.6164 | K195: 193611.0822 | L195: 251694.4068 | M195: 327202.7289 | N195: 392643.2747
C197: Net working capital/(deficit) | D197: =Inputs!$E$9 -> USD | H197: =H187-H193 -> 0 | I197: =I190-I195 -> 273629.589 | J197: 383081.4247 | K197: 517159.9233 | L197: 672307.9003 | M197: 874000.2704 | N197: 1048800.324
C199: (Increase)/decrease in working capital | D199: =Inputs!$E$9 -> USD | I199: =H197-I197 -> -273629.589 | J199: -109451.8356 | K199: =J197-K197 -> -134078.4986 | L199: =K197-L197 -> -155147.977 | M199: =L197-M197 -> -201692.3701 | N199: -174800.0541
A201: ● | C201: Debt funding
C203: USD:Naira rate (EOP)
C206: =CONCATENATE(Inputs!E261," ","Debt") -> Debt
C207: Period count | I207: =IF(AND(MONTH(I$7)=1,I$6=YEAR(Inputs!$E$266)),1,IF(H207>0,H207+1,0)) -> 0 | J207: =IF(AND(MONTH(J$7)=1,J$6=YEAR(Inputs!$E$266)),1,IF(I207>0,I207+1,0)) -> 0 | K207: =IF(AND(MONTH(K$7)=1,K$6=YEAR(Inputs!$E$266)),1,IF(J207>0,J207+1,0)) -> 0 | L207: =IF(AND(MONTH(L$7)=1,L$6=YEAR(Inputs!$E$266)),1,IF(K207>0,K207+1,0)) -> 0 | M207: =IF(AND(MONTH(M$7)=1,M$6=YEAR(Inputs!$E$266)),1,IF(L207>0,L207+1,0)) -> 0 | N207: =IF(AND(MONTH(N$7)=1,N$6=YEAR(Inputs!$E$266)),1,IF(M207>0,M207+1,0)) -> 0
C208: Opening balance | D208: NGN | F208: =Inputs!E262 -> 0 | I208: =H212 -> 0 | J208: =I212 -> 0 | K208: 0 | L208: 0 | M208: 0 | N208: 0
C209: Additions | D209: NGN | E209: Grace | F209: Tenor | I209: =IF(AND(Inputs!$E$266<Model!J$7,Inputs!$E$266>=Model!I$7),Model!$F$208,0) -> 0 | J209: =IF(AND(Inputs!$E$266<Model!K$7,Inputs!$E$266>=Model!J$7),Model!$F$208,0) -> 0 | K209: =IF(AND(Inputs!$E$266<Model!L$7,Inputs!$E$266>=Model!K$7),Model!$F$208,0) -> 0 | L209: =IF(AND(Inputs!$E$266<Model!M$7,Inputs!$E$266>=Model!L$7),Model!$F$208,0) -> 0 | M209: =IF(AND(Inputs!$E$266<Model!N$7,Inputs!$E$266>=Model!M$7),Model!$F$208,0) -> 0 | N209: =IF(AND(Inputs!$E$266<Model!O$7,Inputs!$E$266>=Model!N$7),Model!$F$208,0) -> 0
C210: Repayment flag | E210: =Inputs!E264 /12 -> 0 | F210: =Inputs!E265/12 -> 0 | I210: =IF(I207<=$E210,0,IF(I207>$F210,0,1)) -> 0 | J210: 0 | K210: 0 | L210: 0 | M210: 0 | N210: =IF(N207<=$E210,0,IF(N207>$F210,0,1)) -> 0
C211: Prinicipal payments | D211: NGN | F211: =F210-E210 -> 0 | I211: =IF(I210=1,$F208/$F211,0) -> 0 | J211: 0 | K211: 0 | L211: 0 | M211: 0 | N211: =IF(N210=1,$F208/$F211,0) -> 0
C212: Ending balance | D212: NGN | I212: =I208+I209-I211 -> 0 | J212: 0 | K212: 0 | L212: 0 | M212: 0 | N212: =N208+N209-N211 -> 0
C213: Interest paid | D213: NGN | F213: =Inputs!E263 -> 0 | I213: =$F$213*I212 -> 0 | J213: 0 | K213: 0 | L213: 0 | M213: 0 | N213: 0
C215: =CONCATENATE(Inputs!E271," ","Debt") -> Debt
C216: Period count | I216: =IF(AND(MONTH(I$7)=1,I$6=YEAR(Inputs!$E$276)),1,IF(H216>0,H216+1,0)) -> 1 | J216: =IF(AND(MONTH(J$7)=1,J$6=YEAR(Inputs!$E$276)),1,IF(I216>0,I216+1,0)) -> 2 | K216: =IF(AND(MONTH(K$7)=1,K$6=YEAR(Inputs!$E$276)),1,IF(J216>0,J216+1,0)) -> 3 | L216: =IF(AND(MONTH(L$7)=1,L$6=YEAR(Inputs!$E$276)),1,IF(K216>0,K216+1,0)) -> 4 | M216: =IF(AND(MONTH(M$7)=1,M$6=YEAR(Inputs!$E$276)),1,IF(L216>0,L216+1,0)) -> 5 | N216: =IF(AND(MONTH(N$7)=1,N$6=YEAR(Inputs!$E$276)),1,IF(M216>0,M216+1,0)) -> 6
C217: Opening balance | D217: USD | F217: =Inputs!E272 -> 50000 | I217: =H221 -> 0 | J217: =I221 -> 50000 | K217: =J221 -> 37500 | L217: =K221 -> 25000 | M217: =L221 -> 12500 | N217: 0
C218: Additions | D218: USD | E218: Grace | F218: Tenor | I218: =IF(AND(Inputs!$E$276<Model!J$7,Inputs!$E$276>=Model!I$7),Model!$F$217,0) -> 50000 | J218: =IF(AND(Inputs!$E$276<Model!K$7,Inputs!$E$276>=Model!J$7),Model!$F$217,0) -> 0 | K218: =IF(AND(Inputs!$E$276<Model!L$7,Inputs!$E$276>=Model!K$7),Model!$F$217,0) -> 0 | L218: =IF(AND(Inputs!$E$276<Model!M$7,Inputs!$E$276>=Model!L$7),Model!$F$217,0) -> 0 | M218: =IF(AND(Inputs!$E$276<Model!N$7,Inputs!$E$276>=Model!M$7),Model!$F$217,0) -> 0 | N218: =IF(AND(Inputs!$E$276<Model!O$7,Inputs!$E$276>=Model!N$7),Model!$F$217,0) -> 0
C219: Repayment flag | E219: =Inputs!E274 /12 -> 1 | F219: =Inputs!E275/12 -> 5 | I219: =IF(I216<=$E219,0,IF(I216>$F219,0,1)) -> 0 | J219: 1 | K219: 1 | L219: 1 | M219: 1 | N219: =IF(N216<=$E219,0,IF(N216>$F219,0,1)) -> 0
C220: Prinicipal payments | D220: USD | F220: =F219-E219 -> 4 | I220: =IF(I219=1,$F217/$F220,0) -> 0 | J220: 12500 | K220: 12500 | L220: 12500 | M220: 12500 | N220: =IF(N219=1,$F217/$F220,0) -> 0
C221: Ending balance | D221: USD | I221: =I217+I218-I220 -> 50000 | J221: 37500 | K221: 25000 | L221: 12500 | M221: 0 | N221: =N217+N218-N220 -> 0
C222: Interest paid | D222: USD | F222: =Inputs!E273 -> 0.05 | I222: =$F$222*I221 -> 2500 | J222: =$F$222*J221 -> 1875 | K222: 1250 | L222: 625 | M222: 0 | N222: 0
C224: Opening balance USD debt | D224: NGN | I224: =H227 -> 0 | J224: =I227 -> 20000000 | K224: 16200000 | L224: 11664000 | M224: 6298560 | N224: 0
C225: Additions USD debt | D225: NGN | I225: =I218*I11 -> 20000000 | J225: 0 | K225: 0 | L225: 0 | M225: 0 | N225: 0
C226: Prinicipal payments USD debt | D226: NGN | I226: =I220*I11 -> 0 | J226: 5400000 | K226: 5832000 | L226: 6298560 | M226: 6802444.8 | N226: 0
C227: Ending balance USD debt | D227: NGN | I227: =I221*I11 -> 20000000 | J227: 16200000 | K227: 11664000 | L227: 6298560 | M227: 0 | N227: 0
C228: FX (profit)/loss USD debt | D228: NGN | I228: =I227-SUM(I224:I225,-I226) -> 0 | J228: =J227-SUM(J224:J225,-J226) -> 1600000 | K228: 1296000 | L228: 933120 | M228: 503884.8 | N228: 0
C229: Interest paid | D229: NGN | I229: =I222*I11 -> 1000000 | J229: 810000 | K229: 583200 | L229: 314928 | M229: 0 | N229: 0
A231: ● | C231: Outputs
C233: Returns
C234: IRR | D234: % | F234: =IFERROR(IRR(I234:N234),0) -> 0 | I234: =I106 -> 85954.36096 | J234: 373768.2433 | K234: 522445.0132 | L234: 692500.2031 | M234: 893380.4292 | N234: 1130830.885
A235: x

Sheet Graph Calcs
A1: Graph Calculations
A2: =Name_Model -> FGN 5M Solar Connections Facility - SHS
I4: =CONCATENATE("Annual summary"," ",Inputs!$E$9) -> Annual summary USD | P4: =P6 -> 0
C5: Year | I5: =Start_Year -> 2020 | J5: =I5+1 -> 2021 | K5: =J5+1 -> 2022 | L5: 2023 | M5: 2024 | N5: 2025
A7: x | C7: Graphs
C9: Income Statement
C10: Revenue | D10: =Inputs!$E$9 -> USD | I10: =Model!I$16 -> 2670000 | J10: =Model!J$16 -> 3738000 | K10: =Model!K$16 -> 5046300 | L10: =Model!L$16 -> 6560190 | M10: =Model!M$16 -> 8528247 | N10: =Model!N$16 -> 10233896.4
C11: Net income | D11: =Inputs!$E$9 -> USD | I11: =Model!I$42 -> 359283.95 | J11: =Model!J$42 -> 500311.19 | K11: =Model!K$42 -> 671616.5886 | L11: =Model!L$42 -> 859159.7613 | M11: =Model!M$42 -> 1106683.222 | N11: =Model!N$42 -> 1306872.07
C12: Tax | D12: =Inputs!$E$9 -> USD | I12: =-Model!I40 -> 169074.8 | J12: =-Model!J40 -> 235440.56 | K12: =-Model!K40 -> 316054.8652 | L12: =-Model!L40 -> 404310.4759 | M12: =-Model!M40 -> 520792.1047 | N12: =-Model!N40 -> 614998.621
C13: Interest & FX depreciation | D13: =Inputs!$E$9 -> USD | I13: =-(Model!I35+Model!I36) -> 2500 | J13: =-(Model!J35+Model!J36) -> 1875 | K13: =-(Model!K35+Model!K36) -> 1250 | L13: =-(Model!L35+Model!L36) -> 625 | M13: =-(Model!M35+Model!M36) -> 0 | N13: =-(Model!N35+Model!N36) -> 0
C14: Depreciation | D14: =Inputs!$E$9 -> USD | I14: =-Model!I31 -> 300 | J14: =-Model!J31 -> 270 | K14: =-Model!K31 -> 729.1111111 | L14: =-Model!L31 -> 988.4187929 | M14: =-Model!M31 -> 889.5769136 | N14: =-Model!N31 -> 800.6192222
C15: OPEX & VAT | D15: =Inputs!$E$9 -> USD | I15: =-(Model!I25+Model!I27) -> 269316.25 | J15: =-(Model!J25+Model!J27) -> 382768.25 | K15: =-(Model!K25+Model!K27) -> 523247.185 | L15: =-(Model!L25+Model!L27) -> 701683.4191 | M15: =-(Model!M25+Model!M27) -> 928432.2935 | N15: =-(Model!N25+Model!N27) -> 1145485.327
C16: COGS | D16: =Inputs!$E$9 -> USD | I16: =-Model!I17 -> 1869525 | J16: =-Model!J17 -> 2617335 | K16: =-Model!K17 -> 3533402.25 | L16: =-Model!L17 -> 4593422.925 | M16: =-Model!M17 -> 5971449.803 | N16: =-Model!N17 -> 7165739.763
C17: Net margin | D17: % | I17: ='Graph Calcs'!I11/'Graph Calcs'!I10 -> 0.1345632772 | J17: ='Graph Calcs'!J11/'Graph Calcs'!J10 -> 0.1338446201 | K17: ='Graph Calcs'!K11/'Graph Calcs'!K10 -> 0.133090896 | L17: ='Graph Calcs'!L11/'Graph Calcs'!L10 -> 0.1309656826 | M17: ='Graph Calcs'!M11/'Graph Calcs'!M10 -> 0.1297667882 | N17: ='Graph Calcs'!N11/'Graph Calcs'!N10 -> 0.1277003419
C19: Cashflow Statement
C20: Operating activities | D20: =Inputs!$E$9 -> USD | I20: =Model!I84 -> 85954.36096 | J20: =Model!J84 -> 391129.3544 | K20: =Model!K84 -> 538267.2011 | L20: =Model!L84 -> 705000.2031 | M20: =Model!M84 -> 905880.4292 | N20: =Model!N84 -> 1132872.635
C21: CAPEX | D21: =Inputs!$E$9 -> USD | I21: =Model!I87 -> 0 | J21: =Model!J87 -> -4861.111111 | K21: =Model!K87 -> -3322.187929 | L21: =Model!L87 -> 0 | M21: =Model!M87 -> 0 | N21: =Model!N87 -> -2041.749591
C22: Debt repayment | D22: =Inputs!$E$9 -> USD | I22: =Model!I232+Model!I94 -> 0 | J22: =Model!J232+Model!J94 -> -12500 | K22: =Model!K232+Model!K94 -> -12500 | L22: =Model!L232+Model!L94 -> -12500 | M22: =Model!M232+Model!M94 -> -12500 | N22: =Model!N232+Model!N94 -> 0
C23: Debt issuance | D23: =Inputs!$E$9 -> USD | I23: =Model!I234+Model!I96 -> 135954.361 | J23: =Model!J234+Model!J96 -> 373768.2433 | K23: =Model!K234+Model!K96 -> 522445.0132 | L23: =Model!L234+Model!L96 -> 692500.2031 | M23: =Model!M234+Model!M96 -> 893380.4292 | N23: =Model!N234+Model!N96 -> 1130830.885
C24: Equity or grants | D24: =Inputs!$E$9 -> USD | I24: =Model!I67+Model!I68 -> 54025 | J24: =Model!J67+Model!J68 -> 54025 | K24: =Model!K67+Model!K68 -> 54025 | L24: =Model!L67+Model!L68 -> 54025 | M24: =Model!M67+Model!M68 -> 54025 | N24: =Model!N67+Model!N68 -> 54025
C25: End cash | D25: =Inputs!$E$9 -> USD | I25: =Model!I103 -> 188079.361 | J25: =Model!J103 -> 561847.6042 | K25: =Model!K103 -> 1084292.617 | L25: =Model!L103 -> 1776792.821 | M25: =Model!M103 -> 2670173.25 | N25: =Model!N103 -> 3801004.135
C27: Sales & Working Capital need
C28: Sales | D28: =Inputs!$E$9 -> USD | I28: =Model!I16 -> 2670000 | J28: =Model!J16 -> 3738000 | K28: =Model!K16 -> 5046300 | L28: =Model!L16 -> 6560190 | M28: =Model!M16 -> 8528247 | N28: =Model!N16 -> 10233896.4
C29: Working capital | D29: =Inputs!$E$9 -> USD | I29: =Model!I197 -> 273629.589 | J29: =Model!J197 -> 383081.4247 | K29: =Model!K197 -> 517159.9233 | L29: =Model!L197 -> 672307.9003 | M29: =Model!M197 -> 874000.2704 | N29: =Model!N197 -> 1048800.324
C31: OPEX Breakdown
C32: Total OPEX | D32: =Inputs!$E$9 -> USD | I32: =-Model!I25 -> 69066.25 | J32: =-Model!J25 -> 102418.25 | K32: =-Model!K25 -> 144774.685 | L32: =-Model!L25 -> 209669.1691 | M32: =-Model!M25 -> 288813.7685 | N32: =-Model!N25 -> 377943.0973
C34: Equity payback graph
C35: Equity invested | D35: =Inputs!$E$9 -> USD | I35: =Model!I67 -> 4025 | J35: =Model!J67 -> 4025 | K35: =Model!K67 -> 4025 | L35: =Model!L67 -> 4025 | M35: =Model!M67 -> 4025 | N35: =Model!N67 -> 4025
C36: Distributions to equity | D36: =Inputs!$E$9 -> USD | I36: =Model!I106 -> 85954.36096 | J36: =Model!J106 -> 373768.2433 | K36: =Model!K106 -> 522445.0132 | L36: =Model!L106 -> 692500.2031 | M36: =Model!M106 -> 893380.4292 | N36: =Model!N106 -> 1130830.885
